[Event "Chinese Championship-B Men 2024"]
[Site "Liaocheng"]
[Date "2024.04.24"]
[Round "5.3"]
[White "Zhang, Di"]
[Black "Jiang, Haochen"]
[Result "1-0"]
[WhiteElo "2303"]
[BlackElo "2381"]
[PlyCount "111"]
[EventDate "2024.04.24"]
[EventType "swiss"]
[EventCountry "CHN"]
[TimeControl "5400+30"]

1. e4 {[%emt 0:00:08]} e5 {[%emt 0:00:22]} 2. Nf3 {[%emt 0:00:28]} Nc6 {[%emt 0:00:12]} 3. Nc3 {[%emt 0:00:28]} Nf6 {[%emt 0:00:33]} 4. Bb5 {[%emt 0:01:01]} Bb4 {[%emt 0:05:05]} 5. O-O {[%emt 0:00:16]} O-O {[%emt 0:00:25]} 6. Bxc6 {[%emt 0:00:12]} bxc6 {[%emt 0:03:13]} 7. Nxe5 {[%emt 0:05:16]} Re8 {[%emt 0:14:15]} 8. Nd3 {[%emt 0:14:09]} Bxc3 {[%emt 0:00:21]} 9. dxc3 {[%emt 0:00:09]} Nxe4 {[%emt 0:05:51]} 10. Re1 {[%emt 0:03:48]} d6 {[%emt 0:04:59]} 11. f3 {[%emt 0:14:29]} Nf6 {[%emt 0:13:47]} 12. Bg5 {[%emt 0:00:15]} Bd7 {[%emt 0:00:21]} 13. Qd2 {[%emt 0:00:25]} h6 {[%emt 0:00:52]} 14. Bh4 {[%emt 0:00:32]} g5 {[%emt 0:08:23]} 15. Bf2 {[%emt 0:01:58]} Bf5 {[%emt 0:03:48]} 16. h4 {[%emt 0:06:46]} Nh7 {[%emt 0:01:13]} 17. hxg5 {[%emt 0:06:34]} hxg5 {[%emt 0:04:37]} 18. b4 {[%emt 0:00:31]} Qd7 {[%emt 0:03:59]} 19. a4 {[%emt 0:04:55]} a6 {[%emt 0:01:17]} 20. a5 {[%emt 0:02:16]} f6 {[%emt 0:03:51]} 21. c4 {[%emt 0:13:43]} Qf7 {[%emt 0:11:28]} 22. Bd4 {[%emt 0:02:12]} Rxe1+ {[%emt 0:06:55]} 23. Rxe1 {[%emt 0:00:13]} Re8 {[%emt 0:00:15]} 24. Rxe8+ {[%emt 0:09:32]} Qxe8 {[%emt 0:00:05]} 25. Nf2 {[%emt 0:00:10]} Kf7 {[%emt 0:02:31]} 26. Nd1 {[%emt 0:01:30]} Bxc2 {[%emt 0:00:13]} 27. Ne3 {[%emt 0:00:58]} Bg6 {[%emt 0:00:13]} 28. Bc3 {[%emt 0:01:41]} Nf8 {[%emt 0:01:45]} 29. Qd4 {[%emt 0:01:02]} Qe5 {[%emt 0:01:49]} 30. Qd2 {[%emt 0:03:58]} Qe8 {[%emt 0:00:49]} 31. Ng4 {[%emt 0:00:52]} Nd7 {[%emt 0:01:09]} 32. b5 {[%emt 0:01:01]} Ne5 {[%emt 0:00:56]} 33. Nxe5+ {[%emt 0:00:43]} fxe5 {[%emt 0:00:00]} 34. b6 {[%emt 0:00:19]} Qb8 {[%emt 0:01:26]} 35. c5 {[%emt 0:00:02]} Kf6 {[%emt 0:00:26]} 36. f4 {[%emt 0:00:41]} gxf4 {[%emt 0:00:27]} 37. Qxf4+ {[%emt 0:00:15]} Ke7 {[%emt 0:00:35]} 38. Qh4+ {[%emt 0:00:49]} Ke6 {[%emt 0:00:26]} 39. Qg4+ {[%emt 0:01:48]} Bf5 {[%emt 0:00:32]} 40. Qg7 {[%emt 0:00:11]} cxb6 {[%emt 0:00:34]} 41. axb6 {[%emt 0:00:09]} Be4 {[%emt 0:00:30]} 42. Qh6+ {[%emt 0:00:58]} Kf7 {[%emt 0:00:29]} 43. Qh5+ {[%emt 0:00:59]} Ke6 {[%emt 0:00:29]} 44. Qh6+ {[%emt 0:00:33]} Kf7 {[%emt 0:00:04]} 45. Qh4 {[%emt 0:00:28]} Bd5 {[%emt 0:00:56]} 46. Qh7+ {[%emt 0:00:30]} Ke6 {[%emt 0:00:29]} 47. Qg6+ {[%emt 0:00:30]} Kd7 {[%emt 0:00:12]} 48. Qf5+ {[%emt 0:00:42]} Ke7 {[%emt 0:00:51]} 49. Qh7+ {[%emt 0:00:41]} Ke6 {[%emt 0:00:30]} 50. b7 {[%emt 0:00:24]} Kf6 {[%emt 0:00:31]} 51. Qd7 {[%emt 0:00:50]} Be6 {[%emt 0:00:27]} 52. Qxd6 {[%emt 0:01:08]} Qxb7 {[%emt 0:00:13]} 53. Qxe5+ {[%emt 0:00:11]} Ke7 {[%emt 0:00:04]} 54. Qf6+ {[%emt 0:00:07]} Kd7 {[%emt 0:00:07]} 55. Qg7+ {[%emt 0:00:05]} Kc8 {[%emt 0:00:04]} 56. Qf8+ {[%emt 0:00:04]} 1-0

[Event "Chinese Championship-B Men 2024"]
[Site "Liaocheng"]
[Date "2024.04.24"]
[Round "5.4"]
[White "Xi, Qi"]
[Black "Zhang, Yinzhe"]
[Result "1-0"]
[WhiteElo "2217"]
[BlackElo "1927"]
[PlyCount "107"]
[EventDate "2024.04.24"]
[EventType "swiss"]
[EventCountry "CHN"]
[TimeControl "5400+30"]

1. d4 {[%emt 0:03:36]} Nf6 {[%emt 0:00:05]} 2. c4 {[%emt 0:00:10]} e6 {[%emt 0:00:02]} 3. Nf3 {[%emt 0:00:27]} b6 {[%emt 0:00:05]} 4. a3 {[%emt 0:00:23]} Bb7 {[%emt 0:00:15]} 5. Nc3 {[%emt 0:00:13]} d5 {[%emt 0:00:30]} 6. cxd5 {[%emt 0:00:22]} Nxd5 {[%emt 0:00:53]} 7. Qc2 {[%emt 0:00:11]} Be7 {[%emt 0:04:04]} 8. e4 {[%emt 0:00:20]} Nxc3 {[%emt 0:00:09]} 9. bxc3 {[%emt 0:00:05]} O-O {[%emt 0:00:17]} 10. Bd3 {[%emt 0:00:23]} c5 {[%emt 0:03:00]} 11. O-O {[%emt 0:00:47]} h6 {[%emt 0:00:54]} 12. Rd1 {[%emt 0:04:41]} cxd4 {[%emt 0:03:44]} 13. cxd4 {[%emt 0:02:23]} Nd7 {[%emt 0:00:13]} 14. Bb2 {[%emt 0:02:48]} Nf6 {[%emt 0:00:24]} 15. Qe2 {[%emt 0:07:23]} Rc8 {[%emt 0:18:32]} 16. d5 {[%emt 0:04:46]} exd5 {[%emt 0:00:10]} 17. e5 {[%emt 0:00:07]} Ne8 {[%emt 0:15:01]} 18. Nd4 {[%emt 0:02:30]} Rc5 {[%emt 0:04:06]} 19. Bc2 {[%emt 0:10:46]} Nc7 {[%emt 0:06:06]} 20. Qd3 {[%emt 0:01:37]} Rxc2 {[%emt 0:00:44]} 21. Qxc2 {[%emt 0:00:34]} Ne6 {[%emt 0:01:56]} 22. Nxe6 {[%emt 0:10:20]} fxe6 {[%emt 0:00:02]} 23. Bd4 {[%emt 0:00:07]} Ba6 {[%emt 0:01:50]} 24. Qg6 {[%emt 0:14:23]} Qd7 {[%emt 0:02:52]} 25. Rac1 {[%emt 0:01:30]} Be2 {[%emt 0:04:34]} 26. Re1 {[%emt 0:00:28]} Bc4 {[%emt 0:02:38]} 27. Rc3 {[%emt 0:00:22]} Bg5 {[%emt 0:06:36]} 28. Rg3 {[%emt 0:03:22]} Bd2 {[%emt 0:03:17]} 29. Rd1 {[%emt 0:01:31]} Bf4 {[%emt 0:00:21]} 30. Rh3 {[%emt 0:03:25]} Rf5 {[%emt 0:05:01]} 31. Re1 {[%emt 0:10:11]} Bd2 {[%emt 0:02:30]} 32. Rd1 {[%emt 0:01:33]} Bf4 {[%emt 0:02:11]} 33. g3 {[%emt 0:08:19]} Rg5 {[%emt 0:00:15]} 34. Qc2 {[%emt 0:00:13]} Bxe5 {[%emt 0:00:11]} 35. Be3 {[%emt 0:00:23]} Qe7 {[%emt 0:05:21]} 36. Bxg5 {[%emt 0:01:39]} Qxg5 {[%emt 0:00:02]} 37. Rh4 {[%emt 0:00:08]} Qf5 {[%emt 0:02:24]} 38. Rxc4 {[%emt 0:00:29]} dxc4 {[%emt 0:00:02]} 39. Qxc4 {[%emt 0:00:15]} Bf6 {[%emt 0:01:23]} 40. Rd6 {[%emt 0:01:36]} Kf7 {[%emt 0:00:54]} 41. Rd7+ {[%emt 0:00:11]} Kg6 {[%emt 0:00:11]} 42. Rxa7 {[%emt 0:00:58]} b5 {[%emt 0:00:11]} 43. Qe2 {[%emt 0:02:06]} Kh7 {[%emt 0:04:42]} 44. Rd7 {[%emt 0:01:30]} Kh8 {[%emt 0:02:17]} 45. h4 {[%emt 0:01:05]} Qb1+ {[%emt 0:00:55]} 46. Kg2 {[%emt 0:00:23]} Qc1 {[%emt 0:00:37]} 47. Rd3 {[%emt 0:01:45]} Qc4 {[%emt 0:00:24]} 48. Re3 {[%emt 0:00:42]} Qc6+ {[%emt 0:00:01]} 49. Kh2 {[%emt 0:00:18]} e5 {[%emt 0:00:17]} 50. Rb3 {[%emt 0:00:32]} Qc5 {[%emt 0:00:03]} 51. Rxb5 {[%emt 0:00:17]} Qxa3 {[%emt 0:00:08]} 52. Rb8+ {[%emt 0:00:04]} Kh7 {[%emt 0:00:03]} 53. Qe4+ {[%emt 0:00:14]} g6 {[%emt 0:00:06]} 54. h5 {[%emt 0:00:09]} 1-0

[Event "Chinese Championship-B Men 2024"]
[Site "Liaocheng"]
[Date "2024.04.24"]
[Round "5.5"]
[White "Xu, Wei"]
[Black "Wang, Fan"]
[Result "1-0"]
[WhiteElo "2047"]
[BlackElo "1932"]
[PlyCount "129"]
[EventDate "2024.04.24"]
[EventType "swiss"]
[EventCountry "CHN"]
[TimeControl "5400+30"]

1. e4 {[%emt 0:03:22]} c5 {[%emt 0:00:15]} 2. Nf3 {[%emt 0:00:04]} d6 {[%emt 0:00:06]} 3. d4 {[%emt 0:00:12]} cxd4 {[%emt 0:00:06]} 4. Nxd4 {[%emt 0:00:02]} Nf6 {[%emt 0:00:10]} 5. Nc3 {[%emt 0:00:03]} a6 {[%emt 0:00:05]} 6. Be3 {[%emt 0:00:06]} e5 {[%emt 0:01:00]} 7. Nb3 {[%emt 0:00:03]} Be7 {[%emt 0:00:14]} 8. f3 {[%emt 0:00:02]} O-O {[%emt 0:00:34]} 9. Qd2 {[%emt 0:00:16]} Be6 {[%emt 0:00:16]} 10. Nd5 {[%emt 0:05:18]} Nxd5 {[%emt 0:02:44]} 11. exd5 {[%emt 0:00:19]} Bf5 {[%emt 0:00:09]} 12. Be2 {[%emt 0:00:50]} Qc7 {[%emt 0:06:18]} 13. c4 {[%emt 0:01:07]} a5 {[%emt 0:06:23]} 14. Rc1 {[%emt 0:06:09]} b6 {[%emt 0:05:15]} 15. O-O {[%emt 0:00:16]} Na6 {[%emt 0:01:40]} 16. Na1 {[%emt 0:11:58]} Nc5 {[%emt 0:05:11]} 17. Nc2 {[%emt 0:10:35]} Bg6 {[%emt 0:08:27]} 18. Na3 {[%emt 0:03:22]} f5 {[%emt 0:00:56]} 19. Nb5 {[%emt 0:01:58]} Qd8 {[%emt 0:00:33]} 20. b3 {[%emt 0:09:33]} h6 {[%emt 0:03:58]} 21. Bd1 {[%emt 0:08:23]} Be8 {[%emt 0:11:09]} 22. Bc2 {[%emt 0:08:38]} Bxb5 {[%emt 0:01:36]} 23. cxb5 {[%emt 0:00:12]} Qd7 {[%emt 0:09:59]} 24. Bxc5 {[%emt 0:01:13]} bxc5 {[%emt 0:01:09]} 25. Qd3 {[%emt 0:00:13]} Bg5 {[%emt 0:04:01]} 26. Rce1 {[%emt 0:01:10]} g6 {[%emt 0:04:21]} 27. a4 {[%emt 0:00:14]} Rf7 {[%emt 0:02:07]} 28. g3 {[%emt 0:01:59]} Raf8 {[%emt 0:02:13]} 29. Kg2 {[%emt 0:01:03]} h5 {[%emt 0:00:52]} 30. Qc4 {[%emt 0:02:04]} Qd8 {[%emt 0:01:52]} 31. Bd3 {[%emt 0:05:06]} h4 {[%emt 0:00:39]} 32. g4 {[%emt 0:03:32]} h3+ {[%emt 0:01:08]} 33. Kh1 {[%emt 0:02:50]} Bf4 {[%emt 0:02:48]} 34. gxf5 {[%emt 0:02:07]} gxf5 {[%emt 0:00:19]} 35. Rg1+ {[%emt 0:00:51]} Kh7 {[%emt 0:07:22]} 36. Qc2 {[%emt 0:02:09]} Qh4 {[%emt 0:00:23]} 37. Ref1 {[%emt 0:00:46]} Qh5 {[%emt 0:01:27]} 38. Qf2 {[%emt 0:00:50]} Rg7 {[%emt 0:00:49]} 39. Rxg7+ {[%emt 0:00:04]} Kxg7 {[%emt 0:00:03]} 40. Rg1+ {[%emt 0:00:21]} Kf6 {[%emt 0:00:06]} 41. Be2 {[%emt 0:00:35]} Qh6 {[%emt 0:00:48]} 42. Qe1 {[%emt 0:02:03]} Bd2 {[%emt 0:02:07]} 43. Qf1 {[%emt 0:00:05]} Rh8 {[%emt 0:00:27]} 44. Rg3 {[%emt 0:01:14]} Bf4 {[%emt 0:03:40]} 45. Rg1 {[%emt 0:00:05]} Be3 {[%emt 0:03:00]} 46. Rg3 {[%emt 0:00:06]} Qh4 {[%emt 0:00:13]} 47. Bd3 {[%emt 0:05:10]} Bf4 {[%emt 0:02:55]} 48. Rg1 {[%emt 0:00:16]} Bg5 {[%emt 0:00:20]} 49. Rg3 {[%emt 0:02:03]} Bf4 {[%emt 0:00:40]} 50. Rg1 {[%emt 0:00:05]} Qh5 {[%emt 0:00:05]} 51. Be2 {[%emt 0:00:17]} Kf7 {[%emt 0:00:15]} 52. Qe1 {[%emt 0:00:15]} Be3 {[%emt 0:00:46]} 53. Rg3 {[%emt 0:00:35]} Ra8 {[%emt 0:00:26]} 54. f4 {[%emt 0:00:48]} Qh6 {[%emt 0:01:13]} 55. Rxe3 {[%emt 0:00:16]} Qxf4 {[%emt 0:00:07]} 56. Qg3 {[%emt 0:00:41]} Qd4 {[%emt 0:00:48]} 57. Qg5 {[%emt 0:02:45]} Qa1+ {[%emt 0:01:22]} 58. Qg1 {[%emt 0:02:51]} Qxg1+ {[%emt 0:00:36]} 59. Kxg1 {[%emt 0:00:00]} Rh8 {[%emt 0:00:33]} 60. Bf1 {[%emt 0:00:00]} Kf6 {[%emt 0:00:22]} 61. Rxh3 {[%emt 0:00:00]} Rg8+ {[%emt 0:00:05]} 62. Kf2 {[%emt 0:00:00]} e4 {[%emt 0:00:02]} 63. Rh7 {[%emt 0:00:00]} Ke5 {[%emt 0:00:08]} 64. b6 {[%emt 0:03:00]} Kxd5 {[%emt 0:00:48]} 65. Bc4+ {[%emt 0:00:00]} 1-0

[Event "Chinese Championship-B Men 2024"]
[Site "Liaocheng"]
[Date "2024.04.24"]
[Round "5.6"]
[White "Meng, Yihan"]
[Black "Liu, Haoling"]
[Result "1-0"]
[WhiteElo "2042"]
[BlackElo "1772"]
[PlyCount "79"]
[EventDate "2024.04.24"]
[EventType "swiss"]
[EventCountry "CHN"]
[TimeControl "5400+30"]

1. e4 {[%emt 0:00:04]} c5 {[%emt 0:00:38]} 2. Nf3 {[%emt 0:00:17]} Nc6 {[%emt 0:00:17]} 3. Bb5 {[%emt 0:00:10]} e6 {[%emt 0:00:46]} 4. O-O {[%emt 0:00:13]} Nge7 {[%emt 0:00:12]} 5. d4 {[%emt 0:00:09]} cxd4 6. Nxd4 {[%emt 0:00:06]} a6 {[%emt 0:06:57]} 7. Be2 {[%emt 0:04:10]} Nxd4 {[%emt 0:02:36]} 8. Qxd4 {[%emt 0:00:07]} Nc6 {[%emt 0:00:07]} 9. Qe3 {[%emt 0:02:36]} Qc7 {[%emt 0:05:51]} 10. c4 {[%emt 0:00:58]} Be7 {[%emt 0:00:41]} 11. Nc3 {[%emt 0:01:06]} O-O {[%emt 0:01:00]} 12. b3 {[%emt 0:07:42]} Nb4 {[%emt 0:16:03]} 13. Qd2 {[%emt 0:03:07]} d6 {[%emt 0:05:06]} 14. Ba3 {[%emt 0:05:43]} Nc6 {[%emt 0:02:57]} 15. Rfd1 {[%emt 0:03:40]} Rd8 {[%emt 0:00:40]} 16. Rac1 {[%emt 0:00:15]} Qa5 {[%emt 0:03:32]} 17. Bb2 {[%emt 0:00:24]} Bd7 {[%emt 0:00:31]} 18. Qe3 {[%emt 0:02:05]} Be8 {[%emt 0:02:06]} 19. Qg3 {[%emt 0:14:31]} Qg5 {[%emt 0:01:51]} 20. Qh3 {[%emt 0:00:32]} Ne5 {[%emt 0:01:36]} 21. g3 {[%emt 0:07:40]} Ng6 {[%emt 0:01:16]} 22. Kh1 {[%emt 0:00:13]} Qa5 {[%emt 0:02:55]} 23. f4 {[%emt 0:04:06]} b5 {[%emt 0:06:04]} 24. f5 {[%emt 0:05:23]} Nf8 {[%emt 0:01:12]} 25. a3 {[%emt 0:08:34]} b4 {[%emt 0:02:40]} 26. axb4 {[%emt 0:00:22]} Qxb4 {[%emt 0:00:05]} 27. Qg4 {[%emt 0:00:21]} Qxb3 {[%emt 0:04:42]} 28. Rb1 {[%emt 0:01:49]} Bf6 {[%emt 0:02:50]} 29. Ba1 {[%emt 0:02:21]} Qc2 {[%emt 0:03:03]} 30. Bd3 {[%emt 0:07:54]} Qf2 {[%emt 0:01:01]} 31. Rf1 {[%emt 0:00:10]} exf5 {[%emt 0:01:40]} 32. exf5 {[%emt 0:00:08]} h5 {[%emt 0:07:32]} 33. Qxh5 {[%emt 0:02:46]} Qe3 {[%emt 0:01:47]} 34. Nd5 {[%emt 0:02:05]} Bc6 {[%emt 0:00:59]} 35. Bxf6 {[%emt 0:01:02]} gxf6 {[%emt 0:03:25]} 36. Qg4+ {[%emt 0:05:28]} Kh8 {[%emt 0:04:39]} 37. Be4 {[%emt 0:01:11]} Re8 {[%emt 0:01:07]} 38. Nxe3 {[%emt 0:01:34]} Bxe4+ {[%emt 0:01:13]} 39. Ng2 {[%emt 0:00:18]} Bxb1 {[%emt 0:00:13]} 40. Rxb1 {[%emt 0:00:03]} 1-0

[Event "Chinese Championship-B Men 2024"]
[Site "Liaocheng"]
[Date "2024.04.24"]
[Round "5.7"]
[White "Zhang, Haoxuan(Zj)"]
[Black "Jin, Yueheng"]
[Result "1/2-1/2"]
[WhiteElo "1851"]
[BlackElo "2407"]
[PlyCount "36"]
[EventDate "2024.04.24"]
[EventType "swiss"]
[EventCountry "CHN"]
[TimeControl "5400+30"]

1. e4 {[%emt 0:00:03]} c5 {[%emt 0:00:04]} 2. Nf3 {[%emt 0:00:03]} e6 {[%emt 0:00:03]} 3. d4 {[%emt 0:00:05]} cxd4 {[%emt 0:00:03]} 4. Nxd4 {[%emt 0:00:03]} Nf6 {[%emt 0:00:04]} 5. Nc3 {[%emt 0:00:05]} Nc6 {[%emt 0:00:03]} 6. Ndb5 {[%emt 0:00:05]} Bb4 {[%emt 0:00:08]} 7. Bf4 {[%emt 0:00:05]} Nxe4 {[%emt 0:00:46]} 8. Qf3 {[%emt 0:00:05]} d5 {[%emt 0:01:20]} 9. Nc7+ {[%emt 0:00:04]} Kf8 {[%emt 0:00:03]} 10. Nxa8 {[%emt 0:00:05]} e5 {[%emt 0:03:04]} 11. Bd2 {[%emt 0:00:04]} Nd4 {[%emt 0:00:37]} 12. Qd1 {[%emt 0:00:05]} Qh4 {[%emt 0:00:36]} 13. g3 {[%emt 0:00:04]} Qf6 {[%emt 0:00:19]} 14. Nxe4 {[%emt 0:00:03]} Nf3+ {[%emt 0:00:08]} 15. Ke2 {[%emt 0:00:03]} Nd4+ {[%emt 0:00:05]} 16. Ke1 {[%emt 0:00:03]} Nf3+ {[%emt 0:00:06]} 17. Ke2 {[%emt 0:00:02]} Nd4+ {[%emt 0:00:03]} 18. Ke1 {[%emt 0:00:07]} Nf3+ {[%emt 0:00:04]} 1/2-1/2

[Event "Chinese Championship-B Men 2024"]
[Site "Liaocheng"]
[Date "2024.04.24"]
[Round "5.8"]
[White "Gong, Changda"]
[Black "Yao, Yuhang"]
[Result "0-1"]
[WhiteElo "2170"]
[BlackElo "1887"]
[PlyCount "90"]
[EventDate "2024.04.24"]
[EventType "swiss"]
[EventCountry "CHN"]
[TimeControl "5400+30"]

1. d4 {[%emt 0:02:40]} Nf6 {[%emt 0:00:03]} 2. c4 {[%emt 0:00:17]} g6 {[%emt 0:00:02]} 3. Nc3 {[%emt 0:00:04]} Bg7 {[%emt 0:00:03]} 4. e4 {[%emt 0:00:03]} d6 {[%emt 0:00:03]} 5. Nf3 {[%emt 0:00:03]} O-O {[%emt 0:00:04]} 6. Be2 {[%emt 0:00:03]} e5 {[%emt 0:00:04]} 7. Be3 {[%emt 0:00:05]} Ng4 {[%emt 0:00:04]} 8. Bg5 {[%emt 0:00:05]} f6 {[%emt 0:00:04]} 9. Bc1 {[%emt 0:01:32]} Nc6 {[%emt 0:04:50]} 10. O-O {[%emt 0:01:26]} Kh8 {[%emt 0:01:07]} 11. d5 {[%emt 0:04:08]} Ne7 {[%emt 0:00:14]} 12. h3 {[%emt 0:00:04]} Nh6 {[%emt 0:00:04]} 13. b4 {[%emt 0:00:20]} a5 {[%emt 0:03:47]} 14. bxa5 {[%emt 0:00:38]} Rxa5 {[%emt 0:00:31]} 15. Nd2 {[%emt 0:00:35]} f5 {[%emt 0:01:20]} 16. Nb3 {[%emt 0:00:28]} Ra8 {[%emt 0:00:29]} 17. a4 {[%emt 0:01:47]} fxe4 {[%emt 0:04:22]} 18. Nxe4 {[%emt 0:01:04]} Nhf5 {[%emt 0:01:36]} 19. Bb2 {[%emt 0:02:38]} c5 {[%emt 0:11:51]} 20. dxc6 {[%emt 0:03:26]} bxc6 {[%emt 0:00:42]} 21. g4 {[%emt 0:02:18]} d5 {[%emt 0:00:30]} 22. Ng5 {[%emt 0:31:38]} h6 {[%emt 0:14:18]} 23. Nf3 {[%emt 0:02:44]} e4 {[%emt 0:00:16]} 24. Bxg7+ {[%emt 0:02:41]} Nxg7 {[%emt 0:00:02]} 25. Nfd4 {[%emt 0:17:10]} Qd6 {[%emt 0:01:00]} 26. c5 {[%emt 0:01:04]} Qc7 {[%emt 0:56:04]} 27. Qd2 {[%emt 0:04:24]} g5 {[%emt 0:00:00]} 28. Rfc1 {[%emt 0:00:36]} Ng6 {[%emt 0:00:00]} 29. Rc3 {[%emt 0:00:28]} Nf4 {[%emt 0:00:00]} 30. Bf1 {[%emt 0:00:52]} h5 {[%emt 0:00:00]} 31. Rg3 {[%emt 0:00:26]} hxg4 {[%emt 0:00:00]} 32. hxg4 {[%emt 0:00:11]} Ne8 {[%emt 0:00:00]} 33. Nc2 {[%emt 0:04:20]} Kg7 {[%emt 0:00:00]} 34. Nbd4 {[%emt 0:02:14]} Kg6 {[%emt 0:00:00]} 35. Raa3 {[%emt 0:02:31]} Rh8 {[%emt 0:00:00]} 36. Bg2 {[%emt 0:03:33]} Rb8 {[%emt 0:00:00]} 37. Rab3 {[%emt 0:02:43]} Rxb3 {[%emt 0:00:00]} 38. Nxb3 {[%emt 0:00:01]} Ba6 {[%emt 0:00:00]} 39. Nc1 {[%emt 0:06:26]} Qh7 {[%emt 0:00:00]} 40. f3 {[%emt 0:00:14]} Qh2+ {[%emt 0:00:00]} 41. Kf2 {[%emt 0:00:00]} Nf6 {[%emt 0:00:00]} 42. Qe1 {[%emt 0:03:30]} exf3 {[%emt 0:00:00]} 43. Kxf3 {[%emt 0:00:00]} Nxg2 {[%emt 0:00:00]} 44. Qe5 {[%emt 0:00:00]} Nh4+ {[%emt 0:00:00]} 45. Ke3 {[%emt 0:00:00]} Re8 {[%emt 0:00:00]} 0-1

[Event "Chinese Championship-B Men 2024"]
[Site "Liaocheng"]
[Date "2024.04.24"]
[Round "5.9"]
[White "Jin, Ruijun"]
[Black "Wang, Hao B"]
[Result "0-1"]
[WhiteElo "1819"]
[BlackElo "2170"]
[PlyCount "104"]
[EventDate "2024.04.24"]
[EventType "swiss"]
[EventCountry "CHN"]
[TimeControl "5400+30"]

1. d4 {[%emt 0:00:12]} Nf6 {[%emt 0:00:19]} 2. c4 {[%emt 0:00:12]} g6 {[%emt 0:00:10]} 3. Nc3 {[%emt 0:00:13]} Bg7 {[%emt 0:00:06]} 4. e4 {[%emt 0:00:07]} d6 {[%emt 0:00:14]} 5. Be2 {[%emt 0:00:07]} O-O {[%emt 0:00:12]} 6. Be3 {[%emt 0:00:08]} Nbd7 {[%emt 0:01:33]} 7. Qc2 {[%emt 0:00:10]} e5 {[%emt 0:01:52]} 8. d5 {[%emt 0:00:09]} Ne8 {[%emt 0:02:50]} 9. g4 {[%emt 0:08:09]} Qe7 {[%emt 0:14:24]} 10. O-O-O {[%emt 0:02:25]} Nc5 {[%emt 0:00:57]} 11. h4 {[%emt 0:02:59]} f5 {[%emt 0:01:28]} 12. gxf5 {[%emt 0:08:39]} gxf5 {[%emt 0:00:05]} 13. h5 {[%emt 0:02:00]} Kh8 {[%emt 0:02:52]} 14. Nf3 {[%emt 0:12:46]} fxe4 {[%emt 0:05:57]} 15. Nd2 {[%emt 0:00:46]} Nd3+ {[%emt 0:04:52]} 16. Bxd3 {[%emt 0:00:07]} exd3 {[%emt 0:00:10]} 17. Qxd3 {[%emt 0:00:11]} Bf5 {[%emt 0:00:15]} 18. Nde4 {[%emt 0:01:08]} c6 {[%emt 0:01:45]} 19. Qd2 {[%emt 0:10:17]} Rc8 {[%emt 0:04:35]} 20. f3 {[%emt 0:03:36]} cxd5 {[%emt 0:01:40]} 21. cxd5 {[%emt 0:00:46]} Rc4 {[%emt 0:16:40]} 22. Kb1 {[%emt 0:09:53]} a6 {[%emt 0:00:31]} 23. Ka1 {[%emt 0:00:52]} b5 {[%emt 0:00:12]} 24. Ng3 {[%emt 0:06:59]} Bc8 {[%emt 0:02:04]} 25. h6 {[%emt 0:02:27]} Bf6 {[%emt 0:00:10]} 26. Nce4 {[%emt 0:03:38]} Qc7 {[%emt 0:00:43]} 27. Rc1 {[%emt 0:01:22]} Bb7 {[%emt 0:04:48]} 28. Nf5 {[%emt 0:07:56]} Rxc1+ {[%emt 0:03:19]} 29. Rxc1 {[%emt 0:16:46]} Qd7 {[%emt 0:00:04]} 30. Nfg3 {[%emt 0:00:00]} Qf7 {[%emt 0:01:23]} 31. Rd1 {[%emt 0:00:00]} Qg6 {[%emt 0:06:26]} 32. f4 {[%emt 0:00:00]} Bh4 {[%emt 0:00:44]} 33. f5 {[%emt 0:00:00]} Qg4 {[%emt 0:00:53]} 34. Rg1 {[%emt 0:00:00]} Bxg3 {[%emt 0:00:28]} 35. Nxg3 {[%emt 0:00:00]} Nf6 {[%emt 0:00:06]} 36. Qf2 {[%emt 0:01:47]} Bxd5 {[%emt 0:01:14]} 37. Ne2 {[%emt 0:00:24]} Qf3 {[%emt 0:00:28]} 38. Nc3 {[%emt 0:01:18]} Qxf2 {[%emt 0:00:11]} 39. Bxf2 {[%emt 0:00:05]} Bf3 {[%emt 0:00:30]} 40. Rg3 {[%emt 0:00:55]} Bc6 {[%emt 0:00:22]} 41. Rd3 {[%emt 0:00:37]} Ne8 {[%emt 0:00:27]} 42. a4 {[%emt 0:00:52]} Rxf5 {[%emt 0:00:30]} 43. axb5 {[%emt 0:00:05]} axb5 {[%emt 0:00:03]} 44. Be3 {[%emt 0:00:26]} b4 {[%emt 0:00:41]} 45. Na2 {[%emt 0:00:18]} Rf1+ {[%emt 0:00:33]} 46. Nc1 {[%emt 0:00:04]} d5 {[%emt 0:02:00]} 47. Ka2 {[%emt 0:00:43]} d4 {[%emt 0:00:16]} 48. Bd2 {[%emt 0:00:19]} Be4 {[%emt 0:01:00]} 49. Rg3 {[%emt 0:00:23]} Bd5+ {[%emt 0:00:08]} 50. Nb3 {[%emt 0:00:23]} e4 {[%emt 0:02:02]} 51. Rg5 {[%emt 0:00:29]} Nf6 {[%emt 0:00:33]} 52. Bxb4 {[%emt 0:00:55]} Rf3 {[%emt 0:00:07]} 0-1

[Event "Chinese Championship-B Men 2024"]
[Site "Liaocheng"]
[Date "2024.04.24"]
[Round "5.10"]
[White "Zhou, Yuxu"]
[Black "Hou, Yifan b"]
[Result "1-0"]
[WhiteElo "1789"]
[BlackElo "2161"]
[PlyCount "91"]
[EventDate "2024.04.24"]
[EventType "swiss"]
[EventCountry "CHN"]
[TimeControl "5400+30"]

1. e4 {[%emt 0:00:02]} c5 {[%emt 0:03:57]} 2. Nf3 {[%emt 0:00:06]} Nc6 {[%emt 0:00:08]} 3. Bb5 {[%emt 0:00:03]} g6 {[%emt 0:00:10]} 4. O-O {[%emt 0:00:02]} Bg7 {[%emt 0:00:08]} 5. c3 {[%emt 0:00:02]} e5 {[%emt 0:00:51]} 6. d4 {[%emt 0:00:04]} cxd4 {[%emt 0:00:10]} 7. cxd4 {[%emt 0:00:03]} exd4 {[%emt 0:00:09]} 8. Bf4 {[%emt 0:00:06]} a6 {[%emt 0:00:16]} 9. Ba4 {[%emt 0:00:04]} Nge7 {[%emt 0:00:54]} 10. Bd6 {[%emt 0:00:13]} b5 {[%emt 0:00:30]} 11. Bb3 {[%emt 0:00:08]} Bb7 {[%emt 0:00:11]} 12. Re1 {[%emt 0:00:21]} Nc8 {[%emt 0:00:21]} 13. e5 {[%emt 0:00:05]} Nxd6 {[%emt 0:00:07]} 14. exd6+ {[%emt 0:00:03]} Kf8 {[%emt 0:00:07]} 15. h4 {[%emt 0:00:06]} Bf6 {[%emt 0:02:01]} 16. Nbd2 {[%emt 0:00:05]} Kg7 {[%emt 0:02:00]} 17. Bd5 {[%emt 0:00:06]} Na5 {[%emt 0:35:51]} 18. Bxb7 {[%emt 0:00:05]} Nxb7 {[%emt 0:00:04]} 19. Ne4 {[%emt 0:06:54]} Re8 {[%emt 0:01:36]} 20. Qd2 {[%emt 0:37:59]} Rc8 {[%emt 0:07:01]} 21. h5 {[%emt 0:06:01]} h6 {[%emt 0:04:42]} 22. hxg6 {[%emt 0:05:38]} fxg6 {[%emt 0:00:16]} 23. Nxd4 {[%emt 0:03:06]} Nc5 {[%emt 0:02:04]} 24. Ng3 {[%emt 0:05:15]} Bxd4 {[%emt 0:04:05]} 25. Qxd4+ {[%emt 0:00:06]} Qf6 {[%emt 0:00:08]} 26. Qd2 {[%emt 0:05:10]} Rxe1+ {[%emt 0:06:44]} 27. Rxe1 {[%emt 0:00:33]} Ne6 {[%emt 0:00:07]} 28. b3 {[%emt 0:05:56]} Rc6 {[%emt 0:06:46]} 29. a4 {[%emt 0:05:40]} Qc3 {[%emt 0:01:27]} 30. Qe2 {[%emt 0:01:11]} b4 {[%emt 0:02:03]} 31. a5 {[%emt 0:05:56]} h5 {[%emt 0:01:00]} 32. Qd1 {[%emt 0:02:28]} Rxd6 {[%emt 0:03:18]} 33. Qxd6 {[%emt 0:00:36]} Qxe1+ {[%emt 0:00:04]} 34. Nf1 {[%emt 0:00:41]} Qc3 {[%emt 0:03:13]} 35. Qxa6 {[%emt 0:02:11]} Qxb3 {[%emt 0:00:20]} 36. Qb6 {[%emt 0:02:00]} Qa4 {[%emt 0:07:16]} 37. a6 {[%emt 0:01:44]} Kf7 {[%emt 0:01:13]} 38. a7 {[%emt 0:01:16]} b3 {[%emt 0:00:02]} 39. g3 {[%emt 0:03:44]} b2 {[%emt 0:00:40]} 40. Nd2 {[%emt 0:00:54]} Nc7 {[%emt 0:03:47]} 41. Qxc7 {[%emt 0:01:38]} Qd1+ {[%emt 0:00:05]} 42. Kg2 {[%emt 0:00:47]} Qxd2 {[%emt 0:00:05]} 43. a8=Q {[%emt 0:00:04]} b1=Q {[%emt 0:00:37]} 44. Qc4+ {[%emt 0:00:28]} Ke7 {[%emt 0:00:33]} 45. Qa3+ {[%emt 0:00:26]} d6 {[%emt 0:02:10]} 46. Qa7+ {[%emt 0:00:13]} 1-0